Cogmind - Beta 14 @@@ ROGUE MODE // 2025.01.10 @ 12:21:32 Player: Niko Result: Core destroyed Performance ------------- Evolutions (2) 1000 Regions Visited (5) 1000 Robots Destroyed (30) 150 Value Destroyed (1159) 1159 Prototype IDs (4) 80 Alien Tech Used (0) 0 Bonus (113) 113 TOTAL SCORE: 3502 Bonus ------- High Alert Combat Kills 11 Follower Combat Kills 102 Cogmind --------- Core Integrity 0/550 Matter 128/300 Energy 22/100 System Corruption 0% Temperature Critical (571) Movement Core (250) Ox4 Location -8/Materials Parts ------- > --- POWER (1) -------- (None) > --- PROPULSION (2) --- Aluminum Leg > --- UTILITY (5) ------ Advanced Heat Sink Medium Storage Unit Terrain Scan Processor Targeting Computer Targeting Computer > --- WEAPON (3) ------- Particle Gun > --- INVENTORY (10) --- Light Deuterium Engine Experimental Sensor Array Targeting Computer Improved Light Armor Plating Assault Rifle Peak State ------------ > --- POWER ------------ Light Angular Momentum Engine > --- PROPULSION ------- Carbon-fiber Leg Carbon-fiber Leg > --- UTILITY ---------- Medium Storage Unit Improved Terrain Scanner Terrain Scan Processor Targeting Computer Targeting Computer > --- WEAPON ----------- Heavy Laser Light Assault Rifle Light Assault Rifle > --- INVENTORY -------- Light Deuterium Engine Aluminum Leg Aluminum Leg Advanced Heat Sink Experimental Sensor Array Targeting Computer Improved Light Armor Plating Particle Gun Assault Rifle [Rating: 27] Favorites ----------- Power Light Nuclear Core Engine Ion Engine Power Core Light Nuclear Core Propulsion Aluminum Leg Leg Aluminum Leg Utility Medium Storage Unit Device Improved Terrain Scanner Storage Medium Storage Unit Processor Targeting Computer Weapon Light Assault Rifle Energy Gun Medium Laser Energy Cannon Particle Cannon Ballistic Gun Light Assault Rifle Special Weapon Mining Laser Build | -11 -10 -10 -10 -9 -8 ------- Run | Yrd Mat Min Exi Min Mat Slots Evolved 4 | . . . . . 4 Power . | . . . . . . Propulsion . | . . . . . . Utility 3 | . . . . . 3 Weapon 1 | . . . . . 1 Parts Attached 30 | 7 4 2 . 1 16 Power 4 | 1 . 1 . . 2 Engine 3 | 1 . . . . 2 Core 1 | . . 1 . . . Reactor . | . . . . . . Propulsion 9 | 2 . 1 . . 6 Treads . | . . . . . . Leg 9 | 2 . 1 . . 6 Wheel . | . . . . . . Hover . | . . . . . . Flight . | . . . . . . Utility 7 | 1 2 . . . 4 Device 2 | . . . . . 2 Storage 2 | 1 1 . . . . Processor 3 | . 1 . . . 2 Hackware . | . . . . . . Protection . | . . . . . . Artifact . | . . . . . . Weapon 10 | 3 2 . . 1 4 Energy Gun 5 | 2 1 . . . 2 Energy Cannon 1 | . . . . . 1 Ballistic Gun 3 | 1 1 . . . 1 Ballistic Cannon . | . . . . . . Launcher . | . . . . . . Special Weapon 1 | . . . . 1 . Impact Weapon . | . . . . . . Slashing Weapon . | . . . . . . Piercing Weapon . | . . . . . . Special Melee Weapon . | . . . . . . Unidentified Prototypes . | . . . . . . Parts Lost 14 | . 1 . . . 13 Power 3 | . . . . . 3 Propulsion 4 | . . . . . 4 Utility 1 | . . . . . 1 Weapon 6 | . 1 . . . 5 Highest Loss Streak 4 | . 1 . . . 4 To Critical Strikes . | . . . . . . Average Slot Usage (%) 96 | . 90 100 100 100 88 Engine 3 | . 14 1 . . 6 Core 9 | . . 12 14 14 1 Leg 26 | . 28 28 28 28 17 Device 1 | . . . . . 7 Storage 13 | . 14 14 14 14 9 Processor 14 | . 5 14 14 14 22 Energy Gun 11 | . 14 14 14 10 2 Ballistic Gun 14 | . 14 14 14 14 14 Special Weapon 1 | . . . . 3 4 Peak Build Rating 27 | 6 8 10 10 11 27 Average Rating 10 | 4 6 9 10 10 17 On Entrance 7 | . 6 8 10 10 11 Naked Turns . | . . . . . . Heaviest Build 27 | 14 19 18 18 18 27 Greatest Support 30 | 20 20 20 20 20 30 Greatest Overweight (x) 8 | 1 . . . . 8 Average Overweight (x) . | . . . . . . Largest Inventory Capacity 10 | 8 10 10 10 10 10 Average Capacity 9 | 7 9 10 10 10 10 Most Carried 10 | 5 10 10 10 10 10 Average Carried 8 | 2 5 9 10 9 8 Final Capacity 10 | 8 10 10 10 10 10 Final Carried 10 | 2 10 10 10 10 5 Class Distribution -------------------- 82% | Mutant 6% | Scavenger-Mutant 5% | Scavenger-Skirmisher 4% | Scavenger-Gunner Dominant Class ---------------- Mutant | -10/Materials Mutant | -10/Mines Mutant | -10/Exiles Mutant | -9/Mines Scavenger-Mutant | -8/Materials Resources | -11 -10 -10 -10 -9 -8 ----------- Run | Yrd Mat Min Exi Min Mat Matter Collected 615 | 201 124 63 . 21 206 Remotely . | . . . . . . Salvage Created 1098 | . 278 . . 1 819 Parts 56 | . 15 . . . 41 Haulers Intercepted . | . . . . . . Recyclers Shooed 1 | . . . . . 1 Parts Field Recycled . | . . . . . . Retrieved Matter . | . . . . . . Parts Self-Destructed . | . . . . . . Prevented . | . . . . . . Kills | -11 -10 -10 -10 -9 -8 ------- Run | Yrd Mat Min Exi Min Mat Combat Hostiles Destroyed 28 | . 10 . . 1 17 Guns 23 | . 10 . . 1 12 Cannons 3 | . . . . . 3 AOE 2 | . . . . . 2 Classes Destroyed 7 | . 2 . . 1 4 Operator 1 | . . . . . 1 Watcher 2 | . . . . . 2 Swarmer 6 | . 6 . . . . Grunt 17 | . 4 . . . 13 Sentry 3 | . . . . . 3 Hunter 1 | . . . . . 1 Assembled 1 | . . . . 1 . Best Kill Streak 4 | . 4 . . 1 3 Combat Bots Only 4 | . 4 . . 1 3 Max Kills in Single Turn 2 | . 1 . . 1 2 Gunslinging . | . . . . . . Exploded 2 | . . . . . 2 Melee . | . . . . . . Uniques/NPCs Destroyed . | . . . . . . Combat | -11 -10 -10 -10 -9 -8 -------- Run | Yrd Mat Min Exi Min Mat Hostile Shots Fired 187 | . 40 12 . 5 130 Missed 56 | . 10 5 . 3 38 Damage Taken 2126 | . 308 107 . 28 1683 Core 625 | . 39 18 . . 568 Absorbed by Shields . | . . . . . . Core Remaining (%) 88 | 100 . . . 77 . Volleys Fired 123 | . 22 3 . 15 83 Largest 3 | . 2 2 . 1 3 Hottest 154 | . 70 70 . 100 154 Shots Fired 263 | . 42 6 . 15 200 Gun 236 | . 42 6 . 11 177 Cannon 13 | . . . . . 13 Launcher . | . . . . . . Special 14 | . . . . 4 10 Kinetic 168 | . 21 3 . 11 133 Thermal 95 | . 21 3 . 4 67 Explosive . | . . . . . . Electromagnetic . | . . . . . . Robot Hit Streak 21 | . 7 3 . 3 21 Robot Miss Streak 5 | . 5 1 . 2 5 Penetration Max . | . . . . . . Secondary Targets 1 | . . . . . 1 Max Gunslinging Chain 1 | . . . . . 1 Shots Hit Robots 171 | . 23 4 . 6 138 Core Hits 75 | . 15 . . 3 57 Critical Kills 3 | . . . . . 3 Critical Parts Destroyed 1 | . . . . . 1 Critical Strikes 7 | . 1 . . . 6 Burn 3 | . 1 . . . 2 Destroy 4 | . . . . . 4 Melee Attacks . | . . . . . . Impact . | . . . . . . Slashing . | . . . . . . Piercing . | . . . . . . Sneak Attacks . | . . . . . . Combat Hostiles . | . . . . . . Follow-up Attacks . | . . . . . . Damage Inflicted 2612 | . 300 49 . 45 2218 Guns 1603 | . 295 35 . 45 1228 Cannons 227 | . . . . . 227 Explosions 639 | . . . . . 639 Melee . | . . . . . . Ramming 23 | . 5 14 . . 4 Kinetic 885 | . 169 23 . 45 648 Thermal 1293 | . 126 12 . . 1155 Explosive 411 | . . . . . 411 Electromagnetic . | . . . . . . Impact . | . . . . . . Slashing . | . . . . . . Piercing . | . . . . . . Highest Corruption . | . . . . . . Average Corruption . | . . . . . . Corruption Purged . | . . . . . . Corruption Blocked . | . . . . . . Overload Shots . | . . . . . . Overflow Damage 90 | . . . . . 90 Projectiles . | . . . . . . Explosions 90 | . . . . . 90 Melee . | . . . . . . Knockbacks . | . . . . . . Impact . | . . . . . . Kinetic . | . . . . . . Secondary . | . . . . . . Self-Inflicted Damage . | . . . . . . Shots . | . . . . . . Rammed . | . . . . . . Targets Rammed 6 | . 1 1 . . 4 Kicked 6 | . 1 1 . . 4 Crushed . | . . . . . . Highest Temperature 745 | . 183 69 . 64 745 Average Temperature 153 | . 55 32 . 22 208 Received Heat Transfer 894 | . 120 45 . . 729 Effects 30 | . . . . . 30 Shutdowns 3 | . . . . . 3 Energy Bleed 3 | . . . . . 3 Interference 4 | . . . . . 4 Matter Decay 4 | . . . . . 4 Short Circuit 2 | . . . . . 2 Damage (minor) 1 | . . . . . 1 Damage (major) 10 | . . . . . 10 Damage (core) 3 | . . . . . 3 Siege Activations . | . . . . . . Robots Corrupted . | . . . . . . Combat Hostiles . | . . . . . . Parts Fried . | . . . . . . Impact Corruptions . | . . . . . . Robots Melted . | . . . . . . Combat Hostiles . | . . . . . . Parts Melted 5 | . . . . . 5 Heat Transferred 2607 | . 444 37 . . 2126 Parts Sabotaged . | . . . . . . Parts Stolen . | . . . . . . Parts Stripped . | . . . . . . Power Chain Reactions . | . . . . . . Alert | -11 -10 -10 -10 -9 -8 ------- Run | Yrd Mat Min Exi Min Mat Peak Influence 419 | . 272 169 . 1 419 Initial 5 | . . 5 . . . Average 68 | . 84 55 . . 148 Maximum Alert Level 2 | . 1 . . . 2 Low Security (%) 87 | 100 83 100 . 100 60 Level 1 12 | . 16 . . . 38 Level 2 . | . . . . . 1 Level 3 . | . . . . . . Level 4 . | . . . . . . Level 5 . | . . . . . . High Security . | . . . . . . Max Security . | . . . . . . Squads Dispatched 6 | . 2 . . . 4 Investigation 3 | . 2 . . . 1 Extermination . | . . . . . . Reinforcement 1 | . . . . . 1 Assault . | . . . . . . Garrison 2 | . . . . . 2 Intercept . | . . . . . . Searches Triggered . | . . . . . . Construction Impeded . | . . . . . . Haulers Reinforced . | . . . . . . Active Scanning Responses . | . . . . . . Cargo Convoy Interrupts . | . . . . . . Stealth | -11 -10 -10 -10 -9 -8 --------- Run | Yrd Mat Min Exi Min Mat Distress Signals 7 | . 3 . . . 4 Communications Jammed . | . . . . . . Distress Signals . | . . . . . . Times Spotted 58 | . 19 7 . 1 31 Peak Tracking Total 7 | . 4 3 . 1 7 Tactical Retreats 5 | . . 1 . . 4 Traps | -11 -10 -10 -10 -9 -8 ------- Run | Yrd Mat Min Exi Min Mat Traps Triggered . | . . . . . . Indirectly . | . . . . . . Trap Hack Attempts . | . . . . . . Triggered . | . . . . . . Disarmed . | . . . . . . Reprogrammed . | . . . . . . Reused . | . . . . . . Traps Extracted . | . . . . . . Installed . | . . . . . . Triggered . | . . . . . . Objects Rigged 6 | . . . . . 6 Exploded 3 | . . . . . 3 Machines | -11 -10 -10 -10 -9 -8 ---------- Run | Yrd Mat Min Exi Min Mat Machines Disabled 8 | . . 1 . . 7 Max in Single Turn 3 | . . . . . 3 Machines Repaired . | . . . . . . Machines Dismantled . | . . . . . . Machines Sabotaged . | . . . . . . Overloaded Fab Kills . | . . . . . . Hacking | -11 -10 -10 -10 -9 -8 --------- Run | Yrd Mat Min Exi Min Mat Machines Accessed 13 | . 6 . 4 . 3 Terminals 9 | . 6 . . . 3 Fabricators . | . . . . . . Repair Stations . | . . . . . . Recycling Units . | . . . . . . Scanalyzers . | . . . . . . Garrison Access . | . . . . . . Total Hacks 40 | . 24 . 4 . 12 Successful 26 | . 14 . 4 . 8 Failed 14 | . 10 . . . 4 Catastrophic . | . . . . . . Database Lockouts . | . . . . . . Manual 25 | . 16 . . . 9 Terminals 36 | . 24 . . . 12 Fabricators . | . . . . . . Repair Stations . | . . . . . . Recycling Units . | . . . . . . Scanalyzers . | . . . . . . Garrison Access . | . . . . . . Terminal Hacks 15 | . 9 . 4 . 2 Record 4 | . . . 4 . . Robot Analysis 1 | . 1 . . . . Prototype ID Bank 2 | . 2 . . . . Branch Access Points 1 | . 1 . . . . Alert Level 3 | . 2 . . . 1 Unreport Threat 2 | . 1 . . . 1 Maintenance Status 1 | . 1 . . . . Hauler Manifests 1 | . 1 . . . . Fabricator Hacks . | . . . . . . Repair Station Hacks . | . . . . . . Recycling Unit Hacks . | . . . . . . Scanalyzer . | . . . . . . Garrison Access Hacks . | . . . . . . Unauthorized Hacks 11 | . 5 . . . 6 Terminals 11 | . 5 . . . 6 Botnet 8 | . 5 . . . 3 Detonate 2 | . . . . . 2 Operators 1 | . . . . . 1 Fabricators . | . . . . . . Repair Stations . | . . . . . . Recycling Units . | . . . . . . Scanalyzers . | . . . . . . Garrison Access . | . . . . . . Data Cores Recovered . | . . . . . . Used . | . . . . . . Hacking Detections 9 | . 6 . . . 3 Full Trace Events 4 | . 3 . . . 1 Feedback Events . | . . . . . . Feedback Blocked . | . . . . . . Robot Schematics Acquired . | . . . . . . Robots Built . | . . . . . . Authchips . | . . . . . . Time . | . . . . . . Total Robot Build Rating . | . . . . . . Part Schematics Acquired . | . . . . . . Parts Built . | . . . . . . Authchips . | . . . . . . Time . | . . . . . . Total Part Build Rating . | . . . . . . Parts Repaired . | . . . . . . Time . | . . . . . . Parts Recycled . | . . . . . . Recycled Matter . | . . . . . . Retrieved Matter . | . . . . . . Retrieved Components . | . . . . . . Parts Scanalyzed . | . . . . . . Part Schematics Acquired . | . . . . . . Parts Damaged . | . . . . . . Bothacking | -11 -10 -10 -10 -9 -8 ------------ Run | Yrd Mat Min Exi Min Mat Used RIF Installer . | . . . . . . Robots Hacked . | . . . . . . Non-combat . | . . . . . . Combat . | . . . . . . Robot Hacks Applied . | . . . . . . Relay Couplers Released . | . . . . . . Fabnet Peak Effective % . | . . . . . . Robots Rewired . | . . . . . . Allies Hacked . | . . . . . . Hacks Repelled . | . . . . . . Allies | -11 -10 -10 -10 -9 -8 -------- Run | Yrd Mat Min Exi Min Mat Total Allies 4 | . . 4 . . . Largest Group 3 | . . 3 . . . Highest-Rated Group 40 | . . 40 . . . Highest-Rated Ally 31 | . . 31 . . . Total Orders . | . . . . . . Ally Attacks 28 | . . 28 . . . Total Damage 283 | . . 283 . . . Kills 8 | . . 8 . . . Allies Corrupted . | . . . . . . Allies Melted . | . . . . . . Intel | -11 -10 -10 -10 -9 -8 ------- Run | Yrd Mat Min Exi Min Mat Robot Analysis Total 1 | . 1 . . . . Derelict Logs Recovered 2 | . . 1 . 1 . Drone Launches . | . . . . . . Drone Recoveries . | . . . . . . Exploration | -11 -10 -10 -10 -9 -8 ------------- Run | Yrd Mat Min Exi Min Mat Turns Passed 3855 | 69 627 854 911 717 677 Spaces Moved 2630 | 55 444 688 760 373 310 Core 20 | 19 . . . . 1 Treads . | . . . . . . Legs 2610 | 36 444 688 760 373 309 Wheels . | . . . . . . Hover . | . . . . . . Flight . | . . . . . . Fastest Speed 50 | 50 120 120 120 120 120 Average Speed 119 | 101 120 120 120 120 121 Slowest Speed 450 | 120 120 120 120 120 450 Overloaded Moves . | . . . . . . Propulsion Burnouts . | . . . . . . Robots Hopped . | . . . . . . Cave-ins Triggered . | . . . . . . Exploration Rate (%) 61 | 5 67 97 92 78 29 Regions Visited 5 Branch Regions 3 Pre-discovered Areas . | . . . . . . Known Exits Taken 1 | . 1 . . . . Unknown Exits Taken 4 | 1 . 1 1 1 . Scrap Searched 2 | . . 1 . 1 . Spaces Dug 4 | . . . . 4 . Terrain Destroyed 74 | . . . . 4 70 Melee . | . . . . . . Projectile 6 | . . . . 4 2 AOE 68 | . . . . . 68 Terrain Rammed . | . . . . . . Walls Destroyed . | . . . . . . Machines Disabled . | . . . . . . Actions | -11 -10 -10 -10 -9 -8 --------- Run | Yrd Mat Min Exi Min Mat Total 3106 | 68 496 712 759 623 448 Wait 277 | . 14 14 . 229 20 Move 2625 | 54 443 687 759 372 310 Hop . | . . . . . . Pick Up 32 | 6 11 2 . 3 10 Fast Attach 3 | 2 . . . . 1 Attach 22 | 5 3 1 . 1 12 Detach 1 | 1 . . . . . Swap 5 | . 1 1 . . 3 Drop 12 | . 1 3 . 3 5 Fire 123 | . 22 3 . 15 83 Melee . | . . . . . . Ram . | . . . . . . Kick 6 | . 1 1 . . 4 Crush . | . . . . . . Escape Stasis . | . . . . . . Rewire . | . . . . . . Trap . | . . . . . . Miscellaneous . | . . . . . . Route ------- -11/Scrapyard -10/Materials (discovered 3 exits: [*Mat] / *Min x2) -10/Mines (discovered 3 exits: [*Mat x2] / *Exi) -10/Exiles -9/Mines -8/Materials History --------- Turn | Location | Event 12 | -11/Scrapyard | Discovered new exit (range 16) 70 | -11/Scrapyard | Entered Materials 117 | -10/Materials | Discovered new exit (range 4) 270 | -10/Materials | Discovered new exit (range 16) 301 | -10/Materials | Build established: Mutant 307 | -10/Materials | Identified exit to Mines 697 | -10/Materials | Entered Mines 700 | -10/Mines | Received a Mining Laser from a helpful Derelict 743 | -10/Mines | Discovered new exit (range 13) 940 | -10/Mines | Found a damaged Exp. Sensor Array with a note attached 944 | -10/Mines | Found Prototype Device 1024 | -10/Mines | Assisted by bots powering up and referring to "LRC-V3" 1103 | -10/Mines | Learned Materials emergency access door positions 1114 | -10/Mines | Discovered new exit (range 6) 1545 | -10/Mines | Deemed a non-threat by the Exiles lab entrance 1545 | -10/Mines | Discovered new exit (range 5) 1551 | -10/Mines | Entered Exiles 1551 | -10/Exiles | Found Exiles lab abandoned 2107 | -10/Exiles | Discovered new exit (range 11) 2462 | -10/Exiles | Entered Mines 2469 | -9/Mines | Met a Derelict bent on vengeance 2590 | -9/Mines | Learned Materials terminal intel 2596 | -9/Mines | Assembled infested the area 3109 | -9/Mines | Discovered new exit (range 15) 3179 | -9/Mines | Entered Materials 3179 | -8/Materials | Evolved 4 slots: Utility x3, Weapon x1 3181 | -8/Materials | Loaded intel: 12 terminal locations 3748 | -8/Materials | Garrison activated, responded to threat 3785 | -8/Materials | Lost 3 parts (1u2w) 3823 | -8/Materials | Core integrity fell below 50% 3856 | -8/Materials | Core integrity fell below 20% 3857 | -8/Materials | Core destroyed Last Messages --------------- Overheating: Core damaged (-88). Broken Aluminum Leg destroyed. Overheating: Adv. Heat Sink damaged (-22). Overheating: Targeting Computer damaged (-4). Overheating: Terrain Scan Processor damaged (-9). Overheating: Broken Aluminum Leg damaged (-9). Overheating: Targeting Computer damaged (-1). Overheating: Med. Storage Unit damaged (-51). G-47 Trooper heat short circuits Lgt. Nuclear Core. G-47 Trooper overheating. Overheating: System interference. Adv. Heat Sink temporarily disabled. Hvy. Laser temporarily disabled. G-47 Trooper overheating. Overheating: Core damaged (-104). Hvy. Laser destroyed. G-47 Trooper destroyed. Overheating: Core damaged (-60). Map ----- +----------------------------------------------------+ | ?????????????? ## ?##???#### | | ?????????????" #? ?? ? ?######## | | ?????????????" [ + ? "" #### | | ?????????????" #??? Y? #### | | ?????????????????#?#+####### #??? "" ####"" | | ????????????? ?? #????????## # ? ?####"T | | ?????????????? ??????????### ##?##?###?####"" | | ???????????????? ???? ? ?### #?##?#?##?#### | | ?????????????????# ? ### #################+# | | ??????????????? ?????????#?# | | ????????????????????#??#???# #########+#######+# | | ?????????????????? ??? ??####+#####?## ## # | | ?????????????????#?"?" # "" ##?# """## = # | | ???????????????????""??? # ""S #### """## # | | ?????????????????#???" ??# "" ####=! """## # | | ???????????????? ????? ??# #### ## # | | ??????????????????? ?????# ### ## # | | ?????????????????????? # """ ############ # | | ?????????????????#? ? # """ ################ | | ??????????????????? ? # """ ##?#####?####### | | ???????????????? ? ?? ? # #??########?#### | | ??????????????"??? ? #######+###?##?########## | | ????????????????????#?##??# #%######?########## | | ????????????? ???##########!"" # ############?#### | | ????????? ?# " gg ;%T" #%########?###?###? | | ??????????##"""""""""####@#%"" #!#?#?############# | | ??????????# ? ##### # #%#?#???####??#???# | | ??"T"????## ""? ???##%###### ###?##########?#? | | ??????#???# ** """ #####+##?#?#!#?####?#######?## | | ?????????## ** """?# %*=#?### ##??#?#####?##### | | ??????????# # #?##!! #??###?#####??## | | ???????????? *#% """ #?## ##?#####?##?#?## | | ????????????????? =+% ##?# = #####?#?#?####?? | | ????????##??????? ??#[ """ ##### #####?#?###?#???? | | ??????????#????#?#?+# % ##?## #?# ?"??? + ???? | | ????????????? ?#### ####+####### ### ""???? ?????? | | ????????? o = # ""??? ? ##?? | | ?????????? + "?""? ?# #??? | | ?????????? # ?""? ??????# | | ??????? ?? #################### # ????? ?? ???? | | ??????????????????#?##?#?######### #????? ? #????? | | ?????????? ?#???????###???????#?? #? ???????????? | | ???????????????#?????#?##??###?### #?? ? ???? ???? | | ????????????????##??????#?#?????#??#?#?#?????????? | | ???????????? ??????#?#???#??#?##??+#?????????????? | | ???????????? ??? ? ???? ?#?##? ? ? ????#??????? | | ??????????????????? ?? ?????# ? ??????#?????????? | | ???????????????????????????#?????????????????????? | | ????????????????? ?? ?"??#??? ?????????????????? | | ?????????????????? ??? ??????????????????????????? | +----------------------------------------------------+ Best States ------------- Heat Dissipation 50 Energy Generation 18 Energy Capacity 250 Matter Stores 300 Matter Capacity 300 Sight Range 16 Terrain Scan Range 16 Terrain Scan Density 85 Evasion (%) 55 Targeting Accuracy 10 Item Schematics ----------------- None Robot Schematics ------------------ None Fabricated ------------ Nothing Alien Tech Used ----------------- None Achievements -------------- None Challenges ------------ None Game ------ Seed BladeScanFemtoactuators Manual? 0 Play Time 00:30:55 Cumulative 24.6 hours Start 2025.01.10 @ 09:37:55 End 2025.01.10 @ 12:21:32 Sessions 2 Manual Loads 0 Difficulty Rogue Special Mode None Game No. 43 Rogue 43 Adventurer 0 Explorer 0 Win Type - Total 0 Types 0/0/0/0/0/0/0/0/0 Lore% 14 Gallery% 25 Achievement% 24 Wizard Run 0 Options --------- Layout 1 ASCII 0 Keyboard 0 Movement Mouse Keybinds 0 Fullscreen 1 Font 24/Smallcaps Map View 50x35 Zoom Use 0% Tactical HUD 0 Map Filters NONE Filters NONE Steam 1 RUN: 8a9fcd7e-482d-4d1f-bc44-12ebbf0b8bfe